fUSD/lending_fUSD_20240625
["ID","MTS","AMOUNT","RATE_DAILY","PERIOD"]
[330347486,1719283841251,-154.273941,0.00015,2]
[330347487,1719283841260,-543.75952,0.00015,2]
[330347488,1719283841270,-151.0,0.00015,2]
[330347489,1719283841279,-184.019151,0.00015,2]
[330347490,1719283841288,-163.626312,0.00015,2]
[330347491,1719283841298,-153.587061,0.00015,2]
[330347492,1719283841308,-151.0,0.00015,2]
[330347493,1719283841318,-166.070383,0.00015,2]
[330347494,1719283841327,-278.109032,0.00015,2]
[330347495,1719283841337,-1257.08089383,0.0001503,2]
[330347496,1719283841347,-715.80566214,0.00015051,2]
[330347497,1719283841357,-1422.42,0.00015087,2]
[330347498,1719283841367,-168.577,0.00015087,2]
[330347499,1719283841376,-10000.0,0.00015319,2]
[330347500,1719283841385,-431.72203718,0.00015378,2]
[330347501,1719283841393,-1000.0,0.00015379,2]
[330347502,1719283841404,-703.92770969,0.00015562,2]
[330347503,1719283841414,-657.97,0.00015763,2]
[330347504,1719283841423,-1257.08089383,0.0001634,2]
[330347505,1719283841432,-1340.45084067,0.00016375,2]
[330347506,1719283841442,-703.92770969,0.00016376,2]
[330347507,1719283841451,-155.0,0.00016511,2]
[330347508,1719283841461,-1453.74,0.00016512,2]
[330347509,1719283841471,-180.08,0.00016712,2]
[330347510,1719283841481,-1000.0,0.00017088,2]
[330347511,1719283841492,-703.92770969,0.0001719,2]
[330347512,1719283841502,-6615.79025651,0.0001726,2]
[330347513,1719283841513,-1257.08089383,0.0001765,2]
[330347514,1719283841522,-501.31127049,0.000177,2]
[330347515,1719283841531,-1114.60420033,0.00018,2]
[330347516,1719283841540,-10519.30236516,0.00018,2]
[330347517,1719283841552,-1500.0,0.00018,5]
[330347518,1719283841562,-703.92770969,0.00018004,2]
[330347519,1719283841572,-657.97,0.00018027,2]
[330347520,1719283841581,-1667.09153212,0.000181,2]
[330347521,1719283841591,-1000.0,0.00018797,2]
[330347522,1719283841884,-703.92770969,0.00018819,2]
[330347523,1719283841917,-500.0,0.00018838,2]
[330347524,1719283841928,-200.0,0.00018838,2]
[330347525,1719283841938,-330.98,0.00018877,2]
[330347526,1719283841948,-300.76,0.00018877,2]
[330347527,1719283841957,-712.56,0.00018877,2]
[330347528,1719283841967,-353.96,0.00018877,2]
[330347529,1719283841977,-160.75,0.000189,2]
[330347530,1719283841986,-160.75,0.000189,2]
[330347531,1719283841997,-160.75,0.000189,2]
[330347532,1719283842007,-160.75,0.000189,2]
[330347533,1719283842018,-1257.08089383,0.0001896,2]
[330347534,1719283842028,-198.60999468,0.00019178,2]
[330347535,1719283842038,-500.0,0.00019178,2]
[330347536,1719283842047,-406.55244813,0.00019178,2]
[330347537,1719283842058,-500.0,0.00019178,2]
[330347538,1719283842068,-332.8262591,0.00019178,2]
[330347539,1719283842078,-500.0,0.00019178,2]
[330347540,1719283842088,-500.0,0.00019178,2]
[330347541,1719283842098,-282.2396725,0.00019178,2]
[330347542,1719283842108,-500.0,0.00019178,2]
[330347543,1719283842118,-500.0,0.00019178,2]
[330347544,1719283842130,-500.0,0.00019178,2]
[330347545,1719283842139,-500.0,0.00019178,2]
[330347546,1719283842150,-500.0,0.00019178,2]
[330347547,1719283842159,-500.0,0.00019178,2]
[330347548,1719283842170,-500.0,0.00019178,2]
[330347549,1719283842181,-500.0,0.00019178,2]
[330347550,1719283842190,-500.0,0.00019178,2]
[330347551,1719283842200,-500.0,0.00019178,2]
[330347552,1719283842211,-437.71585658,0.00019178,2]
[330347553,1719283842220,-500.0,0.00019178,2]
[330347554,1719283842230,-500.0,0.00019178,2]
[330347555,1719283842239,-500.0,0.00019178,2]
[330347556,1719283842251,-500.0,0.00019178,2]
[330347557,1719283842262,-500.0,0.00019178,2]
[330347558,1719283842271,-500.0,0.00019178,2]
[330347559,1719283842281,-500.0,0.00019178,2]
[330347560,1719283842290,-500.0,0.00019178,2]
[330347561,1719283842300,-500.0,0.00019178,2]
[330347562,1719283842310,-500.0,0.00019178,2]
[330347563,1719283842320,-500.0,0.00019178,2]
[330347564,1719283842329,-500.0,0.00019178,2]
[330347565,1719283842339,-500.0,0.00019178,2]
[330347566,1719283842348,-500.0,0.00019178,2]
[330347567,1719283842359,-500.0,0.00019178,2]
[330347568,1719283842368,-500.0,0.00019178,2]
[330347569,1719283842378,-432.84820247,0.00019178,2]
[330347570,1719283842388,-500.0,0.00019178,2]
[330347571,1719283842397,-244.07579236,0.00019178,2]
[330347572,1719283842407,-500.0,0.00019178,2]
[330347573,1719283842416,-500.0,0.00019178,2]
[330347574,1719283842425,-500.0,0.00019178,2]
[330347575,1719283842435,-500.0,0.00019178,2]
[330347576,1719283842445,-500.0,0.00019178,2]
[330347577,1719283842455,-500.0,0.00019178,2]
[330347578,1719283842464,-500.0,0.00019178,2]
[330347579,1719283842474,-500.0,0.00019178,2]
[330347580,1719283842483,-500.0,0.00019178,2]
[330347581,1719283842493,-205.10872023,0.00019178,2]
[330347582,1719283842502,-500.0,0.00019178,2]
[330347583,1719283842512,-227.15421905,0.00019178,2]
[330347584,1719283842521,-500.0,0.00019178,2]
[330347585,1719283842531,-500.0,0.00019178,2]
[330347586,1719283842540,-500.0,0.00019178,2]
[330347587,1719283842550,-500.0,0.00019178,2]
[330347588,1719283842560,-396.13445754,0.00019178,2]
[330347589,1719283842569,-194.16527585,0.00019178,2]
[330347590,1719283842587,-400.46725654,0.00019178,2]
[330347591,1719283842599,-500.0,0.00019178,2]
[330347592,1719283842609,-247.76903398,0.00019178,2]
[330347593,1719283842618,-500.0,0.00019178,2]
[330347594,1719283842628,-327.76718719,0.00019178,2]
[330347595,1719283842637,-500.0,0.00019178,2]
[330347596,1719283842648,-250.0,0.00019178,2]
[330347597,1719283842658,-351.29,0.00019178,2]
[330347598,1719283842668,-1453.74,0.00019252,2]
[330347599,1719283842677,-706.0,0.000196,3]
[330347600,1719283842687,-2851.0,0.000196,3]
[330347601,1719283842698,-703.92770969,0.00019633,2]
[330347602,1719283842708,-1002.17,0.000198,6]
[330347603,1719283842718,-52276.78337435,0.0002,7]
[330347604,1719283842728,-159.45136522,0.0002,2]
[330347605,1719283842738,-155.41043954,0.0002,2]
[330347606,1719283842747,-377.41740176,0.0002,2]
[330347607,1719283842757,-1283.46446057,0.0002,2]
[330347608,1719283842767,-139129.29346009,0.0002,2]
[330347609,1719283842776,-3950.0,0.0002,2]
[330347610,1719283842786,-2574.78119986,0.0002,2]
[330347611,1719283842795,-40000.0,0.0002,5]
[330347612,1719283842804,-1506.323418,0.0002,5]
[330347613,1719283842813,-185.54222119,0.0002,2]
[330347614,1719283842824,-394.45618433,0.0002,2]
[330347615,1719283842835,-5744.14447594,0.0002,2]
[330347616,1719283842846,-543.75953,0.0002,2]
[330347617,1719283842856,-2018.87870175,0.000202,2]
[330347618,1719283842866,-1257.08089383,0.0002027,2]
[330347619,1719283842876,-657.97,0.00020291,2]
[330347620,1719283842886,-703.92770969,0.00020447,2]
[330347621,1719283842895,-1000.0,0.00020506,2]
[330347622,1719283842906,-150.0,0.00020579,2]
[330347623,1719283842915,-150.0,0.00020579,2]
[330347624,1719283842926,-14161.0781159,0.000209,3]
[330347625,1719283842935,-178.59443935,0.000209,2]
[330347626,1719283842947,-504.38576692,0.00021,2]
[330347627,1719283842957,-1250.0,0.00021,2]
[330347628,1719283842967,-124509.0,0.00021,2]
[330347629,1719283842979,-155.11898663,0.00021007,2]
[330347630,1719283842990,-534.33380689,0.00021007,2]
[330347631,1719283843000,-150.0,0.00021127,2]
[330347632,1719283843010,-150.0,0.00021127,2]
[330347633,1719283843021,-703.92770969,0.00021261,2]
[330347634,1719283843030,-2216.6536522,0.00021421,2]
[330347635,1719283843040,-219.433659,0.0002143,2]
[330347636,1719283843052,-247.472781,0.0002143,2]
[330347637,1719283843063,-153.893523,0.0002143,2]
[330347638,1719283843073,-11752.0,0.000215,3]
[330347639,1719283843083,-19844.54458342,0.00021521,2]
[330347640,1719283843092,-1257.08089383,0.0002158,2]
[330347641,1719283843102,-420.42,0.00021644,2]
[330347642,1719283843112,-153.02,0.00021644,2]
[330347643,1719283843122,-401.09,0.00021644,2]
[330347644,1719283843132,-160.75,0.0002167,2]
[330347645,1719283843143,-251809.04967261,0.0002168,2]
[330347646,1719283843153,-150.0,0.0002172,2]
[330347647,1719283843163,-300.0,0.0002175,2]
[330347648,1719283843176,-332.01755418,0.00021796,2]
[330347649,1719283843187,-331.63513846,0.00021796,2]
[330347650,1719283843197,-1000.0,0.000218,10]
[330347651,1719283843208,-287.42,0.00021918,2]
[330347652,1719283843218,-179.93,0.00021918,2]
[330347653,1719283843227,-389.4,0.00021918,2]
[330347654,1719283843236,-404.53496476,0.00021989,2]
[330347655,1719283843247,-298.48541302,0.00021997,2]
[330347657,1719283843257,-360.83180893,0.00021999,2]
[330347658,1719283843267,-900.0,0.00022,23]
[330347659,1719283843276,-9369.76817837,0.00022,5]
[330347660,1719283843286,-186.59048242,0.00022,4]
[330347661,1719283843295,-11752.0,0.00022,5]
[330347662,1719283843307,-703.92770969,0.00022076,2]
[330347663,1719283843316,-156.34822331,0.00022178,2]
[330347664,1719283843325,-156.66582621,0.0002247,2]
[330347665,1719283843334,-657.97,0.00022555,2]
[330347666,1719283843344,-180.08,0.00022603,2]
[330347667,1719283843353,-500.0,0.0002262,2]
[330347668,1719283843364,-500.0,0.0002262,2]
[330347669,1719283843373,-500.0,0.0002262,2]
[330347670,1719283843383,-500.0,0.0002262,2]
[330347671,1719283843393,-500.0,0.0002262,2]
[330347672,1719283843403,-500.0,0.0002262,2]
[330347673,1719283843412,-500.0,0.0002262,2]
[330347674,1719283843422,-500.0,0.0002262,2]
[330347675,1719283843431,-500.0,0.0002262,2]
[330347676,1719283843441,-500.0,0.0002262,2]
[330347677,1719283843452,-500.0,0.0002262,2]
[330347678,1719283843462,-500.0,0.0002262,2]
[330347679,1719283843471,-500.0,0.0002262,2]
[330347680,1719283843480,-500.0,0.0002262,2]
[330347681,1719283843490,-500.0,0.0002262,2]
[330347682,1719283843499,-500.0,0.0002262,2]
[330347683,1719283843509,-500.0,0.0002262,2]
[330347684,1719283843518,-500.0,0.0002262,2]
[330347685,1719283843528,-500.0,0.0002262,2]
[330347686,1719283843538,-500.0,0.0002262,2]
[330347687,1719283843548,-500.0,0.0002262,2]
[330347688,1719283843557,-500.0,0.0002262,2]
[330347689,1719283843566,-500.0,0.0002262,2]
[330347690,1719283843576,-500.0,0.0002262,2]
[330347691,1719283843585,-500.0,0.0002262,2]
[330347692,1719283843600,-500.0,0.0002262,2]
[330347693,1719283843610,-500.0,0.0002262,2]
[330347694,1719283843619,-500.0,0.0002262,2]
[330347695,1719283843629,-500.0,0.0002262,2]
[330347696,1719283843638,-500.0,0.0002262,2]
[330347697,1719283843648,-500.0,0.0002262,2]
[330347698,1719283843658,-500.0,0.0002262,2]
[330347699,1719283843667,-500.0,0.0002262,2]
[330347700,1719283843676,-500.0,0.0002262,2]
[330347701,1719283843686,-500.0,0.0002262,2]
[330347702,1719283843695,-500.0,0.0002262,2]
[330347703,1719283843704,-500.0,0.0002262,2]
[330347704,1719283843717,-500.0,0.0002262,2]
[330347705,1719283843726,-500.0,0.0002262,2]
[330347706,1719283843736,-500.0,0.0002262,2]
[330347707,1719283843745,-500.0,0.0002262,2]
[330347708,1719283843754,-610.3253473,0.0002262,2]
[330347709,1719283843764,-500.0,0.0002262,2]
[330347710,1719283843773,-500.0,0.0002262,2]
[330347711,1719283843783,-500.0,0.0002262,2]
[330347712,1719283843792,-500.0,0.0002262,2]
[330347713,1719283843802,-500.0,0.0002262,2]
[330347714,1719283843812,-500.0,0.0002262,2]
[330347715,1719283843821,-500.0,0.0002262,2]
[330347716,1719283843830,-500.0,0.0002262,2]
[330347717,1719283843840,-500.0,0.0002262,2]
[330347718,1719283843850,-500.0,0.0002262,2]
[330347719,1719283843860,-500.0,0.0002262,2]
[330347720,1719283843870,-500.0,0.0002262,2]
[330347721,1719283843879,-500.0,0.0002262,2]
[330347722,1719283843889,-500.0,0.0002262,2]
[330347723,1719283843899,-500.0,0.0002262,2]
[330347724,1719283843909,-500.0,0.0002262,2]
[330347725,1719283843919,-500.0,0.0002262,2]
[330347726,1719283843929,-500.0,0.0002262,2]
[330347727,1719283843938,-500.0,0.0002262,2]
[330347728,1719283843948,-500.0,0.0002262,2]
[330347729,1719283843958,-500.0,0.0002262,2]
[330347730,1719283843967,-500.0,0.0002262,2]
[330347731,1719283843976,-501.57999286,0.0002262,2]
[330347732,1719283843986,-820.63147474,0.00022655,2]
[330347735,1719283843996,-875.30235767,0.0002279,2]
[330347737,1719283844006,-500.0,0.00022794,2]
[330347738,1719283844016,-703.92770969,0.0002289,2]
[330347739,1719283844025,-274.92958015,0.0002289,2]
[330347740,1719283844034,-1023.9896069,0.0002289,2]
[330347741,1719283844043,-1257.08089383,0.0002289,2]
[330347742,1719283844053,-1000.0,0.0002289,2]
[330347743,1719283844062,-1000.8485,0.00022899,2]
[330347744,1719283844071,-500.0,0.00022959,2]
[330347745,1719283844081,-365.347803,0.00022973,2]
[330347746,1719283844090,-249.96667324,0.00022973,2]
[330347747,1719283844100,-718.08277124,0.00022979,2]
[330347748,1719283844111,-207.0,0.0002298,2]
[330347749,1719283844120,-160.75,0.0002298,2]
[330347750,1719283844130,-160.75,0.0002298,2]
[330347751,1719283844141,-160.75,0.0002298,2]
[330347752,1719283844151,-160.75,0.0002298,2]
[330347753,1719283844161,-160.75,0.0002298,2]
[330347754,1719283844174,-160.75,0.0002298,2]
[330347755,1719283844183,-23551.4894684,0.00022984,2]
[330347756,1719283844193,-1969.3065592,0.00022984,2]
[330347757,1719283844203,-995.2430051,0.00022984,2]
[330347758,1719283844214,-2938320.17719251,0.0002299,5]
[330347759,1719283845083,-7010.41756118,0.00015319,2]
[330347760,1719283845095,-2828.45274486,0.00016066,2]
[330347761,1719283845104,-202.33653025,0.0002,2]
[330347762,1719283845116,-202.33653025,0.0002,2]
[330347763,1719283845125,-202.33653025,0.0002,2]
[330347764,1719283845133,-202.33653025,0.0002,2]
[330347765,1719283845143,-202.33653025,0.0002,2]
[330347766,1719283845154,-202.33653025,0.0002,2]
[330347767,1719283845163,-202.33653025,0.0002,2]
[330347768,1719283845178,-314.94682603,0.0002299,5]
[330347769,1719283845187,-529030.01687771,0.0002299,5]
[330347770,1719283845411,-202.33653025,0.0002,2]
[330347771,1719283845421,-104.40922952,0.0002,2]
[330347775,1719283846825,-155.0,0.00016375,2]
[330347776,1719283846835,-97.92730073,0.0002,2]
[330347777,1719283846844,-202.33653025,0.0002,2]
[330347778,1719283846854,-202.33653025,0.0002,2]
[330347779,1719283846863,-202.33653025,0.0002,2]
[330347780,1719283846872,-202.33653025,0.0002,2]
[330347781,1719283846884,-202.33653025,0.0002,2]
[330347782,1719283846893,-202.33653025,0.0002,2]
[330347783,1719283846903,-202.33653025,0.0002,2]
[330347784,1719283846912,-202.33653025,0.0002,2]
[330347785,1719283846921,-202.33653025,0.0002,2]
[330347786,1719283846932,-202.33653025,0.0002,2]
[330347787,1719283846944,-202.33653025,0.0002,2]
[330347788,1719283846955,-233815.48807977,0.0002299,5]
[330347789,1719284103652,250.0,0.00022,30]
[330347790,1719284117524,250.0,0.00023,30]
[330347791,1719284133807,250.0,0.00024,30]
[330347793,1719284152820,250.0,0.00024,30]
[330347799,1719284832800,-163.86650232,0.00013799,2]
[330347800,1719284832830,-588.00408443,0.00013799,2]
[330347801,1719284832851,-6949.0688,0.000138,2]
[330347802,1719284832872,-157.1391,0.000138,2]
[330347803,1719284832896,-163.8665023,0.00013809,2]
[330347804,1719284832917,-163.8665023,0.00013819,2]
[330347805,1719284832939,-163.8665023,0.00013829,2]
[330347806,1719284832962,-163.8665023,0.00013839,2]
[330347807,1719284832982,-163.8665023,0.00013849,2]
[330347808,1719284833002,-163.8665023,0.00013859,2]
[330347809,1719284833022,-163.8665023,0.00013869,2]
[330347810,1719284833041,-163.8665023,0.00013879,2]
[330347811,1719284833062,-163.8665023,0.00013889,2]
[330347812,1719284833082,-220.0,0.00013899,2]
[330347813,1719284833102,-163.8665023,0.00013899,2]
[330347814,1719284833122,-4829.2983948,0.00013899,2]
[330347815,1719284833249,-433.89274004,0.00013899,2]
[330347816,1719284852103,-278.36278054,0.00013699,2]
[330347817,1719284852124,-28676.58448608,0.00013899,2]
[330347820,1719284937549,181.062512,0.00025,71]
[330347821,1719284959782,177.062512,0.00025,72]
[330347827,1719285034322,-0.04451549,0.00013447,2]
[330347828,1719285034345,-44807.58176117,0.00013447,2]
[330347829,1719285034356,-10113.25074618,0.00013447,2]
[330347830,1719285035124,-6075.0,0.00013447,2]
[330347831,1719285035136,-700.0,0.00013447,2]
[330347832,1719285035147,-36325.31162038,0.00013447,2]
[330347843,1719285039622,-940.00164375,0.00013447,2]
[330347845,1719285039635,-4091.52937777,0.00013447,2]
[330347846,1719285039653,-444631.2768181,0.00013447,2]
[330347848,1719285039664,-333.50716187,0.00013599,2]
[330347849,1719285039674,-185.57518702,0.00013699,2]
[330347850,1719285039684,-185.57518702,0.000137,2]
[330347851,1719285039694,-185.57518702,0.000137,2]
[330347852,1719285039703,-150.0,0.00013798,2]
[330347853,1719285039714,-7813.416,0.00013799,2]
[330347854,1719285039725,-161.67085015,0.000138,2]
[330347855,1719285039735,-199.97760614,0.0001389,2]
[330347856,1719285039745,-170801.55803106,0.000139,2]
[330347857,1719285039760,-23611.83536894,0.000139,2]
[330347858,1719285039770,-499.99,0.000139,2]
[330347859,1719285039780,-5666.13632114,0.00014799,2]
[330347860,1719285039791,-23900.0,0.00014952,2]
[330347861,1719285039802,-210.0,0.00015178,2]
[330347862,1719285039815,-5666.13632114,0.00015698,2]
[330347863,1719285039824,-1000.0,0.00015797,2]
[330347864,1719285039836,-619.709,0.00015886,2]
[330347865,1719285039846,-189.898,0.00015886,2]
[330347866,1719285039856,-505.066,0.00015886,2]
[330347867,1719285039867,-823.236,0.00015886,2]
[330347868,1719285039877,-10357.02,0.00015886,2]
[330347869,1719285039887,-535.1,0.00016048,2]
[330347870,1719285039897,-19606.28873825,0.00016066,2]
[330347871,1719285039907,-3761.17954518,0.00016116,2]
[330347872,1719285040175,-1e-08,0.00016116,2]
[330347873,1719285040187,-6077.9,0.00016116,2]
[330347874,1719285040420,-160.91045481,0.00016116,2]
[330347875,1719285040430,-7010.41756118,0.00016161,2]
[330347876,1719285040440,-5666.13632114,0.00016597,2]
[330347877,1719285040450,-180.08,0.00016712,2]
[330347878,1719285040460,-163.07222295,0.00016847,2]
[330347879,1719285040470,-916.46,0.00017279,2]
[330347880,1719285040480,-250.0,0.00017281,2]
[330347881,1719285040490,-365.35,0.00017383,2]
[330347882,1719285040500,-2136.56,0.00017426,2]
[330347883,1719285040510,-250.0,0.00017484,2]
[330347884,1719285040520,-5666.13632114,0.00017496,2]
[330347885,1719285040530,-1340.45084067,0.00017533,2]
[330347886,1719285040539,-639.99350433,0.0001777,2]
[330347887,1719285040550,-205.39,0.0001787,2]
[330347888,1719285040564,-8393.44,0.00017973,2]
[330347889,1719285040574,-191.33,0.00018187,2]
[330347890,1719285040584,-333.50716187,0.00018245,2]
[330347891,1719285040595,-365.35,0.00018252,2]
[330347892,1719285040604,-535.1,0.00018312,2]
[330347893,1719285040614,-5666.13632114,0.00018395,2]
[330347894,1719285040624,-639.99350431,0.00018501,2]
[330347895,1719285040636,-1840.97,0.00018519,2]
[330347896,1719285040647,-968.02,0.00018697,2]
[330347897,1719285040657,-1105.99,0.00018697,2]
[330347898,1719285040666,-365.35,0.00019121,2]
[330347899,1719285040676,-500.0,0.00019178,2]
[330347900,1719285040687,-500.0,0.00019178,2]
[330347901,1719285040696,-500.0,0.00019178,2]
[330347902,1719285040707,-500.0,0.00019178,2]
[330347903,1719285040717,-369.78219882,0.00019178,2]
[330347904,1719285040728,-336.98660298,0.00019178,2]
[330347905,1719285040738,-500.0,0.00019178,2]
[330347906,1719285040749,-437.52398406,0.00019178,2]
[330347907,1719285040760,-198.02663028,0.00019178,2]
[330347908,1719285040771,-250.0,0.00019178,2]
[330347909,1719285040781,-639.99350431,0.00019233,2]
[330347910,1719285040791,-5666.13632114,0.00019294,2]
[330347911,1719285040804,-168.44,0.00019437,2]
[330347912,1719285040814,-150.0,0.00019626,2]
[330347913,1719285040824,-150.42,0.00019913,2]
[330347914,1719285040834,-639.99350431,0.00019964,2]
[330347915,1719285040845,-365.35,0.0001999,2]
[330347916,1719285040855,-848.0,0.0002,2]
[330347917,1719285040864,-461.23815575,0.0002,2]
[330347918,1719285040875,-176.03278132,0.0002,2]
[330347919,1719285040885,-176.03278132,0.0002,2]
[330347920,1719285040894,-176.03278132,0.0002,2]
[330347921,1719285040904,-176.03278132,0.0002,2]
[330347922,1719285040914,-176.03278132,0.0002,2]
[330347923,1719285040923,-176.03278132,0.0002,2]
[330347924,1719285040932,-176.03278132,0.0002,2]
[330347925,1719285040942,-176.03278132,0.0002,2]
[330347926,1719285040951,-176.03278132,0.0002,2]
[330347927,1719285040962,-176.03278132,0.0002,2]
[330347928,1719285040972,-176.03278132,0.0002,2]
[330347929,1719285040981,-176.03278132,0.0002,2]
[330347930,1719285040991,-176.03278132,0.0002,2]
[330347931,1719285041001,-5666.13632114,0.00020193,2]
[330347932,1719285041011,-168.86,0.00020337,2]
[330347933,1719285041022,-1000.0,0.00020447,2]
[330347934,1719285041031,-535.1,0.00020576,2]
[330347935,1719285041041,-639.99350431,0.00020696,2]
[330347936,1719285041054,-1088.9802921,0.000208,3]
[330347937,1719285041064,-365.35,0.00020859,2]
[330347938,1719285041074,-11848.92750706,0.000209,3]
[330347939,1719285041086,-30628.2169898,0.000209,3]
[330347940,1719285041097,-15197.73806736,0.000209,3]
[330347943,1719285042061,-176.03278132,0.0002,2]
[330347944,1719285042071,-176.03278132,0.0002,2]
[330347945,1719285042080,-176.03278132,0.0002,2]
[330347946,1719285042090,-176.03278132,0.0002,2]
[330347947,1719285042099,-176.03278132,0.0002,2]
[330347948,1719285042108,-176.03278132,0.0002,2]
[330347949,1719285042118,-176.03278132,0.0002,2]
[330347950,1719285042128,-176.03278132,0.0002,2]
[330347951,1719285042138,-1995.73214942,0.000209,3]
[330347952,1719285042149,-362.6208906,0.000209,3]
[330347953,1719285042161,-153389.48336476,0.000209,3]
[330347954,1719285042170,-262.98393809,0.000209,2]
[330347955,1719285042180,-28260.63652208,0.00021092,5]
[330347956,1719285042189,-5666.13632114,0.00021092,2]
[330347957,1719285042198,-185.5514983,0.00021092,2]
[330347958,1719285042208,-6467.35512028,0.00021149,3]
[330347959,1719285042218,-150.42,0.00021283,2]
[330347960,1719285042227,-155.94167811,0.00021427,2]
[330347961,1719285042237,-639.99350431,0.00021427,2]
[330347962,1719285042247,-12934.7102406,0.00021506,3]
[330347963,1719285042256,-6467.35512028,0.00021507,3]
[330347964,1719285042266,-6467.35512028,0.00021608,3]
[330347965,1719285042275,-3649.57,0.00021618,2]
[330347966,1719285042285,-6481.70525319,0.00021618,2]
[330347967,1719285042296,-399.39,0.00021644,2]
[330347968,1719285042307,-239.51,0.00021918,2]
[330347969,1719285042317,-324.5,0.00021918,2]
[330347970,1719285042326,-5666.13632114,0.00021991,2]
[330347971,1719285042336,-5000.0,0.00021997,2]
[330347972,1719285042346,-527.79,0.00022164,2]
[330347973,1719285042355,-423.79,0.00022164,2]
[330347974,1719285042365,-150.0,0.00022164,2]
[330347975,1719285042374,-150.0,0.00022164,2]
[330347976,1719285042383,-153.18,0.00022164,2]
[330347977,1719285042393,-150.63,0.00022164,2]
[330347978,1719285042402,-152.2,0.00022164,2]
[330347979,1719285042411,-164.65,0.00022164,2]
[330347980,1719285042423,-354.39,0.00022164,2]
[330347981,1719285042432,-527.79,0.00022164,2]
[330347982,1719285042442,-423.79,0.00022164,2]
[330347983,1719285042451,-150.0,0.00022164,2]
[330347984,1719285042462,-150.0,0.00022164,2]
[330347985,1719285042473,-164.65,0.00022164,2]
[330347986,1719285042483,-150.0,0.00022164,2]
[330347987,1719285042493,-354.39,0.00022164,2]
[330347988,1719285042503,-150.0,0.00022164,2]
[330347989,1719285042512,-150.0,0.00022164,2]
[330347990,1719285042523,-164.65,0.00022164,2]
[330347991,1719285042533,-150.0,0.00022164,2]
[330347992,1719285042542,-354.39,0.00022164,2]
[330347993,1719285042554,-423.79,0.00022164,2]
[330347994,1719285042567,-527.79,0.00022164,2]
[330347995,1719285042576,-423.79,0.00022164,2]
[330347996,1719285042585,-164.65,0.00022164,2]
[330347997,1719285042599,-354.39,0.00022164,2]
[330347998,1719285042609,-150.0,0.00022164,2]
[330347999,1719285042618,-150.0,0.00022164,2]
[330348000,1719285042627,-164.65,0.00022164,2]
[330348001,1719285042637,-150.0,0.00022164,2]
[330348002,1719285042647,-150.0,0.00022164,2]
[330348003,1719285042656,-354.39,0.00022164,2]
[330348004,1719285042666,-423.79,0.00022164,2]
[330348005,1719285042675,-474.28975858,0.00022523,2]
[330348006,1719285042685,-349.48121021,0.00022524,2]
[330348007,1719285042694,-159.45136522,0.00022797,2]
[330348008,1719285042704,-500.0,0.00022798,2]
[330348009,1719285042713,-200.0,0.00022798,2]
[330348010,1719285042722,-586.33207861,0.00022822,2]
[330348011,1719285042731,-6011.4611248,0.00022823,2]
[330348012,1719285042741,-535.1,0.0002284,2]
[330348013,1719285042751,-222.8249572,0.00022879,2]
[330348014,1719285042762,-654.00415617,0.00022889,2]
[330348015,1719285042772,-155.25534032,0.00022889,2]
[330348016,1719285042783,-5666.13632114,0.0002289,2]
[330348017,1719285042793,-1753.82906951,0.0002289,2]
[330348018,1719285042808,-268.47130087,0.0002289,2]
[330348019,1719285042817,-853.02051683,0.0002289,4]